bitfinex/quotes_ETHUSD_20230102
["timestamp","ask_amount","ask_price","bid_price","bid_amount"]
[1672619673783,5.004,1200.2,1200.1,15.6767952]
[1672619674196,5.004,1200.2,1200.1,24.0094252]
[1672619674741,0.004,1200.2,1200.1,7.3441652]
[1672619674891,7.5129,1200.4,1200.2,2.5]
[1672619675107,7.5129,1200.4,1200.2,6.48441652]
[1672619675354,7.5129,1200.4,1200.3,0.25238382]
[1672619675543,0.004,1200.4,1200.3,0.831]
[1672619675770,0.6257,1200.5,1200.3,1.08338382]
[1672619686191,0.6257,1200.5,1200.3,0.25238382]
[1672619688299,0.6257,1200.5,1200.3,0.26705841]
[1672619688730,2.2916,1200.6,1200.3,0.26705841]
[1672619690143,2.2916,1200.6,1200.3,0.26435869]
[1672619690380,6.2317636,1200.6,1200.3,0.26435869]
[1672619690589,6.2357636,1200.6,1200.3,0.26435869]
[1672619690976,6.2357636,1200.6,1200.3,0.01467459]
[1672619697483,10.38462474,1200.6,1200.3,0.01467459]
[1672619697819,2.5,1200.3,1200.2,3.096]
[1672619698016,2.2492,1200.3,1200.1,3.096]
[1672619698227,2.2492,1200.3,1200.1,3.0]
[1672619698228,1.666,1200.3,1200.1,3.0]
[1672619698813,1.666,1200.3,1200.1,5.5]
[1672619698973,1.666,1200.3,1200.1,5.596]
[1672619701542,2.092,1200.2,1200.1,3.096]
[1672619701688,2.092,1200.2,1200.1,4.15193783]
[1672619706961,2.092,1200.3,1200.1,6.65193783]
[1672619707169,2.092,1200.3,1200.1,6.74793783]
[1672619707589,2.092,1200.3,1200.1,5.596]
[1672619708123,2.092,1200.3,1200.1,3.096]
[1672619708472,2.092,1200.3,1200.1,3.0]
[1672619709146,2.08981727,1200.3,1200.1,3.25238382]
[1672619709407,2.08981727,1200.3,1200.1,5.75238382]
[1672619709619,2.08981727,1200.3,1200.1,7.2740922]
[1672619710907,2.08981727,1200.3,1200.1,4.7740922]
[1672619711111,2.08981727,1200.3,1200.1,4.6780922]
[1672619713012,2.08981727,1200.3,1200.1,7.1780922]
[1672619713194,2.08981727,1200.3,1200.1,7.2740922]
[1672619716056,2.08981727,1200.3,1200.1,4.7740922]
[1672619716266,2.08981727,1200.3,1200.1,4.6780922]
[1672619716849,2.08981727,1200.3,1200.1,7.1780922]
[1672619717060,2.08981727,1200.3,1200.1,7.2740922]
[1672619723939,2.08981727,1200.3,1200.1,7.28876924]
[1672619729095,2.08981727,1200.3,1200.1,7.28487723]
[1672619733172,2.157,1200.4,1200.1,7.28487723]
[1672619733521,6.23986114,1200.4,1200.1,7.28487723]
[1672619733748,6.24386114,1200.4,1200.1,7.28487723]
[1672619734042,6.24386114,1200.4,1200.1,5.85916885]
[1672619734043,8.10923586,1200.4,1200.1,5.85916885]
[1672619735103,5.0,1200.2,1200.1,5.85916885]
[1672619735250,5.004,1200.2,1200.1,5.85916885]
[1672619736304,5.004,1200.2,1200.1,3.35916885]
[1672619736541,0.004,1200.2,1200.1,5.76316885]
[1672619736848,6.24386114,1200.4,1200.1,7.28595574]
[1672619737062,5.0,1200.2,1200.1,7.28595574]
[1672619737277,5.004,1200.2,1200.1,7.28595574]
[1672619737813,5.004,1200.2,1200.1,4.78595574]
[1672619738023,5.004,1200.2,1200.1,4.68995574]
[1672619739626,5.004,1200.2,1200.1,7.18995574]
[1672619739778,5.004,1200.2,1200.1,7.28595574]
[1672619743175,0.004,1200.2,1200.1,7.28595574]
[1672619743368,6.24386114,1200.4,1200.1,7.28595574]
[1672619744665,5.0,1200.2,1200.1,4.78595574]
[1672619744829,5.004,1200.2,1200.1,3.26316885]
[1672619745577,5.004,1200.2,1200.1,5.76316885]
[1672619745801,5.004,1200.2,1200.1,5.85916885]
[1672619747017,5.004,1200.2,1200.1,3.35916885]
[1672619747146,5.004,1200.2,1200.1,3.26316885]
[1672619747346,5.004,1200.2,1200.1,4.43995574]
[1672619749973,5.004,1200.2,1200.1,4.43679815]
[1672619750866,0.004,1200.2,1200.1,6.93679815]
[1672619751062,0.004,1200.2,1200.1,7.03279815]
[1672619751063,5.0,1200.2,1200.1,7.03279815]
[1672619751269,5.004,1200.2,1200.1,4.53279815]
[1672619751604,5.004,1200.2,1200.1,4.43679815]
[1672619753094,5.004,1200.2,1200.1,6.93679815]
[1672619753232,5.004,1200.2,1200.1,7.03279815]
[1672619757057,0.004,1200.2,1200.1,7.03279815]
[1672619757269,6.24386114,1200.4,1200.1,7.03279815]
[1672619757485,5.60415725,1200.4,1200.1,5.85601126]
[1672619758175,5.0,1200.2,1200.1,3.35601126]
[1672619758383,5.0,1200.2,1200.1,3.26001126]
[1672619758384,5.004,1200.2,1200.1,3.26001126]
[1672619760118,5.004,1200.2,1200.1,5.76001126]
[1672619760336,5.004,1200.2,1200.1,7.28248239]
[1672619762438,5.004,1200.2,1200.1,9.35848239]
[1672619763654,5.006,1200.2,1200.1,9.35648239]
[1672619763898,5.004,1200.2,1200.1,9.35848239]
[1672619764114,5.004,1200.2,1200.1,17.69111239]
[1672619764958,5.004,1200.2,1200.1,9.35848239]
[1672619772059,5.004,1200.2,1200.1,9.35537725]
[1672619773006,0.004,1200.2,1200.1,9.35537725]
[1672619773214,8.2731,1200.5,1200.2,2.5]
[1672619773431,11.1085,1200.5,1200.2,2.5]
[1672619773752,11.1085,1200.5,1200.3,0.25238382]
[1672619773961,5.0,1200.4,1200.3,0.25238382]
[1672619774173,5.004,1200.4,1200.3,0.25238382]
[1672619779989,0.004,1200.4,1200.3,1.08338382]
[1672619780171,0.004,1200.5,1200.3,1.08338382]
[1672619780386,0.6256,1200.6,1200.3,1.08338382]
[1672619780610,4.77446114,1200.6,1200.3,1.08338382]
[1672619780813,5.88170926,1200.6,1200.3,1.08338382]
[1672619781055,5.0,1200.4,1200.3,0.25238382]
[1672619781385,5.004,1200.4,1200.3,0.25238382]
[1672619787141,0.004,1200.4,1200.3,1.08338382]
[1672619787349,16.36050926,1200.6,1200.3,1.08338382]
[1672619787350,14.20350926,1200.6,1200.3,1.08338382]
[1672619788104,5.0,1200.4,1200.3,0.25238382]
[1672619788270,5.004,1200.4,1200.3,0.25238382]
[1672619792096,5.004,1200.4,1200.3,0.24903974]
[1672619794097,0.004,1200.4,1200.3,1.08003974]
[1672619794249,12.24364812,1200.6,1200.3,1.48142746]
[1672619794250,8.9474,1200.6,1200.3,1.48142746]
[1672619794463,8.9474,1200.6,1200.3,1.08003974]
[1672619794992,5.0,1200.4,1200.3,0.24903974]
[1672619795202,5.004,1200.4,1200.3,0.24903974]
[1672619798475,5.006,1200.4,1200.3,0.24903974]
[1672619798688,5.004,1200.4,1200.3,0.24903974]
[1672619810737,0.004,1200.4,1200.3,1.08003974]
[1672619810953,8.9474,1200.6,1200.3,1.48142746]
[1672619811802,5.0,1200.4,1200.3,0.65042746]
[1672619811996,5.004,1200.4,1200.3,0.24903974]
[1672619814050,5.004,1200.4,1200.2,0.096]
[1672619814051,9.15286114,1200.4,1200.2,0.096]
[1672619814239,9.15286114,1200.4,1200.2,3.0]
[1672619814425,9.77856114,1200.4,1200.1,2.596]
[1672619814634,9.77856114,1200.4,1200.2,3.0]
[1672619814635,11.32324876,1200.4,1200.2,3.0]
[1672619814851,11.32324876,1200.4,1200.1,2.596]
[1672619815061,11.32324876,1200.4,1200.2,3.0]
[1672619815396,11.32324876,1200.4,1200.1,2.596]
[1672619815573,11.32324876,1200.4,1200.2,3.0]
[1672619815782,11.32324876,1200.4,1200.1,2.596]
[1672619815984,11.32324876,1200.4,1200.2,3.0]
[1672619816195,11.32324876,1200.4,1200.1,2.596]
[1672619816439,11.32324876,1200.4,1200.2,3.0]
[1672619816631,0.00392678,1200.2,1200.1,2.596]
[1672619816845,5.00392678,1200.2,1200.1,5.5]
[1672619817074,5.00792678,1200.2,1200.1,5.596]
[1672619818147,5.00792678,1200.2,1200.1,5.84838382]
[1672619821683,5.00792678,1200.2,1200.1,5.84529933]
[1672619822403,5.00792678,1200.2,1200.1,3.34838382]
[1672619822617,5.00792678,1200.2,1200.1,3.25238382]
[1672619829604,0.00792678,1200.2,1200.1,3.25238382]
[1672619829811,0.00392678,1200.2,1200.1,3.25238382]
[1672619830644,5.00392678,1200.2,1200.1,3.25238382]
[1672619830866,5.00792678,1200.2,1200.1,3.25238382]
[1672619836676,0.00792678,1200.2,1200.1,3.25238382]
[1672619836994,0.00392678,1200.2,1200.1,3.25238382]
[1672619837563,5.00392678,1200.2,1200.1,3.25238382]
[1672619837776,5.00792678,1200.2,1200.1,3.25238382]
[1672619840545,9.6637806,1200.2,1200.1,3.25238382]
[1672619840733,11.7467806,1200.2,1200.0,3.15858]
[1672619840943,2.092,1200.1,1200.0,0.06258]
[1672619841154,8.53936806,1200.1,1200.0,0.06258]
[1672619841387,8.54336806,1200.1,1200.0,0.06258]
[1672619845465,8.54336806,1200.1,1200.0,0.05954548]
[1672619846352,12.6922292,1200.1,1200.0,0.05954548]
[1672619852945,7.6922292,1200.1,1200.0,0.05954548]
[1672619853927,12.6922292,1200.1,1200.0,0.05954548]
[1672619859853,7.6922292,1200.1,1200.0,0.05954548]
[1672619860943,12.6922292,1200.1,1200.0,0.05954548]
[1672619869231,12.6922292,1200.1,1200.0,0.05608021]
[1672619869424,5.004,1200.1,1200.0,1.13946403]
[1672619869836,5.004,1200.1,1200.0,4.13946403]
[1672619870051,5.006,1200.1,1200.0,4.13946403]
[1672619870333,5.004,1200.1,1200.0,4.13946403]
[1672619870527,5.004,1200.1,1200.0,5.02031043]
[1672619870847,5.004,1200.1,1200.0,5.11631043]
[1672619871470,5.004,1200.1,1200.0,7.63285737]
[1672619873748,5.00247975,1200.1,1200.0,7.63285737]
[1672619879030,5.00247975,1200.1,1200.0,5.13285737]
[1672619879261,5.00247975,1200.1,1200.0,3.40446403]
[1672619879469,5.00247975,1200.1,1200.0,3.30846403]
[1672619879711,0.00247975,1200.1,1200.0,3.30846403]
[1672619879903,4.7218,1200.3,1200.0,3.30846403]
[1672619880136,8.87066114,1200.3,1200.0,3.30846403]
[1672619880456,11.31494234,1200.3,1200.0,3.30846403]
[1672619880612,5.0,1200.1,1200.0,3.30846403]
[1672619880835,5.00247975,1200.1,1200.0,3.30846403]
[1672619886728,0.00247975,1200.1,1200.0,3.30846403]
[1672619886956,11.31494234,1200.3,1200.0,3.30846403]
[1672619887266,4.14886114,1200.2,1200.0,3.30846403]
[1672619887691,5.0,1200.1,1200.0,3.30846403]
[1672619887884,5.00247975,1200.1,1200.0,3.30846403]
[1672619891261,5.00247975,1200.1,1200.0,3.05608021]
[1672619894662,5.00247975,1200.1,1200.0,0.05608021]
[1672619897183,5.00247975,1200.1,1200.0,0.05311312]
[1672619901508,0.00247975,1200.1,1200.0,0.05311312]
[1672619901714,4.14886114,1200.2,1200.0,0.05311312]
[1672619902063,5.49963398,1200.2,1200.0,0.05311312]
[1672619902194,5.50211373,1200.2,1200.0,0.05311312]
[1672619902608,5.0,1200.1,1200.0,0.05311312]
[1672619902852,5.00247975,1200.1,1200.0,0.05311312]
[1672619904344,11.24334089,1200.1,1200.0,0.05311312]
[1672619904562,13.13223087,1200.1,1200.0,0.05311312]
[1672619904909,13.75813087,1200.1,1200.0,0.05311312]
[1672619914475,19.99091691,1200.1,1200.0,0.05311312]
[1672619914740,19.99091691,1200.1,1199.7,2.596]
[1672619914741,22.08291691,1200.1,1199.7,2.5]
[1672619914935,4.183,1199.8,1199.7,2.5]
[1672619915124,13.75016114,1199.8,1199.6,0.096]
[1672619915332,6.23486114,1199.7,1199.5,0.50838303]
[1672619915546,6.23486114,1199.7,1199.5,0.41238303]
[1672619915547,8.95906114,1199.6,1199.5,0.41238303]
[1672619915801,9.36954089,1199.6,1199.2,2.5]
[1672619916007,4.14886114,1199.5,1199.2,2.5318262]
[1672619916323,5.0,1199.4,1199.3,0.25238382]
[1672619916473,5.00247975,1199.4,1199.3,0.25238382]
[1672619917097,5.00247975,1199.4,1199.3,0.24930106]
[1672619919998,5.00247975,1199.4,1199.2,0.50358357]
[1672619919999,11.23734089,1199.4,1199.2,0.50358357]
[1672619920219,11.23734089,1199.4,1199.2,3.40758357]
[1672619920220,4.14886114,1199.3,1199.2,3.40758357]
[1672619920361,5.0,1199.3,1199.2,5.90758357]
[1672619920567,5.00247975,1199.3,1199.2,6.00358357]
[1672619920834,5.00247975,1199.3,1199.2,6.25596739]
[1672619925454,5.00247975,1199.3,1199.2,3.75596739]
[1672619925636,10.28017498,1199.3,1199.2,0.65996739]
[1672619926564,10.90647498,1199.3,1199.2,0.65996739]
[1672619926892,10.28017498,1199.3,1199.2,0.65996739]
[1672619927936,5.00247975,1199.3,1199.2,0.65996739]
[1672619928200,5.00247975,1199.3,1199.2,3.15996739]
[1672619928436,5.00247975,1199.3,1199.2,6.15996739]
[1672619928566,5.00247975,1199.3,1199.2,6.25596739]
[1672619929714,5.00247975,1199.3,1199.2,3.50358357]
[1672619929715,9.15134089,1199.3,1199.2,3.50358357]
[1672619929976,9.65778887,1199.3,1199.2,0.65996739]
[1672619930344,9.65778887,1199.3,1199.2,3.65996739]
[1672619931720,9.65778887,1199.3,1199.2,3.40758357]
[1672619931934,11.74978887,1199.3,1199.2,0.40758357]
[1672619932294,12.37608887,1199.3,1199.1,3.0]
[1672619932505,9.14886114,1199.2,1199.1,3.0]
[1672619932723,9.15134089,1199.2,1199.1,3.0]
[1672619934147,9.15134089,1199.2,1199.1,5.5]
[1672619934344,9.15134089,1199.2,1199.1,5.84838382]
[1672619935287,9.15134089,1199.2,1199.1,3.34838382]
[1672619935548,9.15134089,1199.2,1199.1,3.25238382]
[1672619936273,9.15134089,1199.2,1199.1,3.0]
[1672619937933,9.15134089,1199.2,1199.1,5.5]
[1672619938175,9.15134089,1199.2,1199.1,5.596]
[1672619939003,9.15134089,1199.2,1199.1,3.096]
[1672619939213,5.00247975,1199.2,1199.1,5.5]
[1672619939404,5.00247975,1199.2,1199.1,5.84838382]
[1672619940603,5.00247975,1199.2,1199.1,5.84478975]
[1672619941838,5.00247975,1199.2,1199.1,7.3058872]
[1672619944523,5.00247975,1199.2,1199.1,5.84478975]
[1672619945675,3.75942232,1199.2,1199.1,7.91778975]
[1672619945888,3.75694257,1199.2,1199.1,7.91778975]
[1672619957580,0.06447975,1199.3,1199.2,2.5]
[1672619957893,2.9162,1199.5,1199.2,2.5]
[1672619958027,7.06506114,1199.5,1199.2,2.75238382]
[1672619958232,7.06754089,1199.5,1199.2,2.75238382]
[1672619958485,5.0,1199.3,1199.2,2.75238382]
[1672619958712,5.00247975,1199.3,1199.2,6.89905177]
[1672619958867,5.00247975,1199.3,1199.2,6.99505177]
[1672619961285,5.00247975,1199.3,1199.2,7.41857089]
[1672619967129,5.00247975,1199.3,1199.2,7.4163188]
[1672619973072,4.99872694,1199.3,1199.2,7.4163188]
[1672619973421,4.99624719,1199.3,1199.2,7.4163188]
[1672619974017,0.06447975,1199.4,1199.2,7.4163188]
[1672619974228,4.77506114,1199.5,1199.3,3.0]
[1672619974647,4.77506114,1199.5,1199.4,0.25238382]
[1672619975067,9.77506114,1199.5,1199.4,0.25238382]
[1672619975319,9.77754089,1199.5,1199.4,0.25238382]
[1672619981009,4.77754089,1199.5,1199.4,0.25238382]
[1672619981222,4.77506114,1199.5,1199.4,0.25238382]
[1672619982060,9.77506114,1199.5,1199.4,0.25238382]
[1672619982394,9.77754089,1199.5,1199.4,0.25238382]
[1672619988025,4.77754089,1199.5,1199.4,0.25238382]
[1672619988288,4.77506114,1199.5,1199.4,0.25238382]
[1672619988647,4.14886114,1199.5,1199.4,0.25238382]
[1672619989020,9.14886114,1199.5,1199.4,0.25238382]
[1672619989194,9.15134089,1199.5,1199.4,0.25238382]
[1672619994982,4.15134089,1199.5,1199.4,0.25238382]
[1672619995365,4.14886114,1199.5,1199.4,0.25238382]
[1672619995915,4.14886114,1199.5,1199.4,0.24963416]
[1672619996130,9.14886114,1199.5,1199.4,0.24963416]
[1672619996380,9.15134089,1199.5,1199.4,0.24963416]
[1672620002257,4.15134089,1199.5,1199.4,0.24963416]
[1672620002470,4.14886114,1199.5,1199.4,0.24963416]
[1672620003169,9.14886114,1199.5,1199.4,0.24963416]
[1672620003311,9.15134089,1199.5,1199.4,0.24963416]
[1672620009176,4.15134089,1199.5,1199.4,0.24963416]
[1672620009298,4.14886114,1199.5,1199.4,0.24963416]
[1672620010178,9.14886114,1199.5,1199.4,0.24963416]
[1672620010385,9.15134089,1199.5,1199.4,0.24963416]
[1672620011361,10.89287498,1199.5,1199.4,0.24963416]
[1672620011518,10.89287498,1199.5,1199.3,3.0]
[1672620011739,5.0,1199.4,1199.3,3.0]
[1672620011939,5.00247975,1199.4,1199.3,3.0]
[1672620014304,9.15134089,1199.4,1199.2,8.99761912]
[1672620014467,10.45602839,1199.4,1199.2,8.99761912]
[1672620014931,10.45602839,1199.4,1199.2,9.25000294]
[1672620016520,10.45602839,1199.4,1199.2,9.24940914]
[1672620018166,4.14886114,1199.3,1199.2,9.24940914]
[1672620018318,9.14886114,1199.3,1199.2,12.24940914]
[1672620018527,9.15134089,1199.3,1199.2,12.24940914]
[1672620018796,9.15134089,1199.3,1199.2,3.77130914]
[1672620019078,9.15134089,1199.3,1199.2,3.67590294]
[1672620025306,4.15134089,1199.3,1199.2,3.67590294]
[1672620025463,4.14886114,1199.3,1199.2,3.67590294]
[1672620026155,9.14886114,1199.3,1199.2,3.67590294]
[1672620026319,9.15134089,1199.3,1199.2,3.67590294]
[1672620028146,5.00247975,1199.3,1199.2,3.67590294]
[1672620028357,5.00247975,1199.3,1199.2,5.35723864]
[1672620028358,3.75936373,1199.3,1199.2,5.35723864]
[1672620028582,3.75688398,1199.3,1199.2,5.45264484]
[1672620029042,3.75688398,1199.3,1199.2,5.20026102]
[1672620029252,3.75688398,1199.3,1199.2,5.45264484]
[1672620030599,3.75688398,1199.3,1199.2,4.40375505]
[1672620030726,3.75688398,1199.3,1199.2,4.30834885]
[1672620038412,0.06447975,1199.4,1199.3,2.5]
[1672620038771,4.14886114,1199.4,1199.3,2.5]
[1672620039383,9.14886114,1199.4,1199.3,2.5]
[1672620039706,9.15134089,1199.4,1199.3,2.5]
[1672620039924,9.15134089,1199.4,1199.2,4.40375505]
[1672620040072,9.15134089,1199.4,1199.2,4.30834885]
[1672620040281,5.0,1199.3,1199.2,4.30834885]
[1672620040512,5.00247975,1199.3,1199.2,4.30834885]
[1672620045258,0.00247975,1199.3,1199.2,4.30834885]
[1672620045437,4.14886114,1199.4,1199.2,4.30834885]
[1672620046548,5.0,1199.3,1199.2,4.30834885]
[1672620046694,5.00247975,1199.3,1199.2,4.30834885]
[1672620051533,5.00247975,1199.3,1199.2,4.30496336]
[1672620052372,0.00247975,1199.3,1199.2,4.05257954]
[1672620052582,4.14886114,1199.4,1199.2,4.05257954]
[1672620053251,5.0,1199.3,1199.2,4.05257954]
[1672620053477,5.00247975,1199.3,1199.2,4.05257954]
[1672620056175,5.00247975,1199.3,1199.2,3.42013363]
[1672620067104,0.00247975,1199.3,1199.2,3.42013363]
[1672620067324,4.77516114,1199.4,1199.2,3.42013363]
[1672620068103,5.0,1199.3,1199.2,3.42013363]
[1672620068329,5.00247975,1199.3,1199.2,3.42013363]
[1672620069369,9.15134089,1199.3,1199.2,3.42013363]
[1672620069627,10.13530498,1199.3,1199.2,3.42013363]
[1672620070651,9.15134089,1199.3,1199.2,3.42013363]
[1672620072525,9.15134089,1199.3,1199.2,3.41786717]
[1672620076894,9.15134089,1199.3,1199.2,3.67025099]
[1672620078553,5.00247975,1199.3,1199.2,3.67025099]
[1672620082865,0.00247975,1199.3,1199.2,3.67025099]
[1672620083195,0.002,1199.3,1199.2,3.67025099]
[1672620083423,0.6262,1199.5,1199.2,3.67025099]
[1672620083562,4.14886114,1199.4,1199.2,3.67025099]
[1672620083773,5.0,1199.3,1199.2,3.67025099]
[1672620083983,5.00247975,1199.3,1199.2,3.67025099]
[1672620088305,5.00247975,1199.3,1199.2,4.51023171]
[1672620093349,5.00247975,1199.3,1199.2,4.50772952]
[1672620098425,5.00247975,1199.3,1199.2,3.6677488]
[1672620101638,0.00247975,1199.3,1199.2,3.6677488]
[1672620101880,0.6262,1199.5,1199.2,3.6677488]
[1672620102109,4.77506114,1199.5,1199.2,3.6677488]
[1672620102683,5.0,1199.3,1199.2,3.6677488]
[1672620102894,5.00247975,1199.3,1199.2,3.6677488]
[1672620112664,0.00247975,1199.3,1199.2,3.6677488]
[1672620112873,6.86354089,1199.5,1199.2,3.6677488]
[1672620113138,8.52287498,1199.5,1199.2,3.6677488]
[1672620113735,5.0,1199.3,1199.2,3.6677488]
[1672620113930,5.00247975,1199.3,1199.2,3.6677488]
[1672620115242,5.00247975,1199.3,1199.2,3.66423239]
[1672620125017,5.00247975,1199.3,1199.2,4.94312218]
[1672620125225,5.00247975,1199.3,1199.2,5.91149002]
[1672620125538,5.00247975,1199.3,1199.2,5.7545124]
[1672620125746,5.00247975,1199.3,1199.2,6.20490841]
[1672620126332,5.00247975,1199.3,1199.2,5.40840244]
[1672620132140,5.00247975,1199.3,1199.2,7.50040244]
[1672620132350,5.00247975,1199.3,1199.2,7.24801862]
[1672620133401,5.00247975,1199.3,1199.2,7.50040244]
[1672620135248,5.00247975,1199.3,1199.2,27.30407223]
[1672620135400,5.00247975,1199.3,1199.2,41.73195294]
[1672620135611,3.7596202,1199.3,1199.2,41.73195294]
[1672620135880,3.75714045,1199.3,1199.2,41.73195294]
[1672620137190,3.75714045,1199.3,1199.2,33.39306294]
[1672620140489,3.75714045,1199.3,1199.2,33.14067912]
[1672620141175,3.75714045,1199.3,1199.2,33.39306294]
[1672620141710,3.75714045,1199.3,1199.2,29.31215159]
[1672620142438,3.75714045,1199.3,1199.2,20.97326159]
[1672620144162,3.75714045,1199.3,1199.2,17.8323718]
[1672620148011,3.75714045,1199.3,1199.2,17.8493718]
[1672620149073,3.75714045,1199.3,1199.2,17.00473517]
[1672620151667,3.75714045,1199.3,1199.2,5.40840244]
[1672620152021,3.75714045,1199.3,1199.2,5.17840244]
[1672620152388,3.75714045,1199.3,1199.2,3.95765078]
[1672620152599,3.75714045,1199.3,1199.2,0.86224458]
[1672620154270,5.83914045,1199.3,1199.2,0.86224458]
[1672620154503,5.8416202,1199.3,1199.2,0.86224458]
[1672620155739,5.8416202,1199.3,1199.2,3.6146284]
[1672620155935,5.8416202,1199.3,1199.2,6.6146284]
[1672620156150,5.8416202,1199.3,1199.2,6.7100346]
[1672620156941,5.8546202,1199.3,1199.2,6.7100346]
[1672620158627,5.8546202,1199.3,1199.2,6.70730048]
[1672620161495,5.8546202,1199.3,1199.2,6.45491666]
[1672620162561,5.8566202,1199.3,1199.2,6.70530048]
[1672620162771,5.8546202,1199.3,1199.2,4.20730048]
[1672620163002,5.8546202,1199.3,1199.2,1.11189428]
[1672620164142,3.7596202,1199.3,1199.2,1.11189428]
[1672620164347,3.75714045,1199.3,1199.2,1.11189428]
[1672620165351,4.34820247,1199.3,1199.2,1.11189428]
[1672620167603,6.44320247,1199.3,1199.2,1.11189428]
[1672620167973,6.44568222,1199.3,1199.2,1.11189428]
[1672620169978,5.8546202,1199.3,1199.2,1.11189428]
[1672620171244,3.7596202,1199.3,1199.2,2.16078407]
[1672620171558,3.75714045,1199.3,1199.2,2.16078407]
[1672620171946,3.75714045,1199.3,1199.2,4.66078407]
[1672620172298,3.75714045,1199.3,1199.2,7.66078407]
[1672620172447,3.75714045,1199.3,1199.2,7.75619027]
[1672620173135,3.75714045,1199.3,1199.2,7.50380645]
[1672620177330,2.15347975,1199.4,1199.2,7.50380645]
[1672620177653,6.23786114,1199.4,1199.2,7.50380645]
[1672620177880,6.24034089,1199.4,1199.2,7.50380645]
[1672620178178,6.24034089,1199.4,1199.2,6.45491666]
[1672620178337,5.0,1199.3,1199.2,3.95491666]
[1672620178548,5.00247975,1199.3,1199.2,0.85951046]
[1672620181518,5.00247975,1199.3,1199.2,0.85560249]
[1672620184367,0.00247975,1199.3,1199.2,3.35560249]
[1672620184583,4.8832,1199.5,1199.2,6.99116274]
[1672620184584,2.78567975,1199.5,1199.2,6.99116274]
[1672620184895,0.69067975,1199.6,1199.3,3.03182355]
[1672620185113,0.6262,1199.6,1199.4,2.53182089]
[1672620185274,0.6262,1199.6,1199.4,2.5]
[1672620185734,0.6262,1199.6,1199.4,0.40812904]
[1672620185945,0.6262,1199.6,1199.4,2.90812904]
[1672620187115,4.77506114,1199.6,1199.4,0.40812904]
[1672620187349,6.26975523,1199.6,1199.4,0.40812904]
[1672620187483,6.27223498,1199.6,1199.4,0.40812904]
[1672620191176,6.27223498,1199.6,1199.4,2.90812904]
[1672620194239,4.77754089,1199.6,1199.4,2.90812904]
[1672620194455,4.77506114,1199.6,1199.4,2.90812904]
[1672620199844,10.17187975,1199.7,1199.4,2.90812904]
[1672620200059,14.25874089,1199.7,1199.4,2.90812904]
[1672620203613,14.25874089,1199.7,1199.4,2.90575052]
[1672620204274,12.16374089,1199.7,1199.4,2.90575052]
[1672620206937,12.16374089,1199.7,1199.4,3.15813434]
[1672620207462,13.65862498,1199.7,1199.4,3.15813434]
[1672620209674,12.16374089,1199.7,1199.4,3.15813434]
[1672620211239,8.01487975,1199.7,1199.4,4.20702413]
[1672620212666,8.01487975,1199.7,1199.4,3.95464031]
[1672620213670,8.01487975,1199.7,1199.4,4.20702413]
[1672620214797,8.01487975,1199.7,1199.4,7.76754344]
[1672620215008,8.01487975,1199.7,1199.4,7.86294964]
[1672620215627,8.01487975,1199.7,1199.4,8.70758627]
[1672620216158,0.6262,1199.6,1199.5,3.0]
[1672620216515,0.69057975,1199.7,1199.6,2.5]
[1672620216788,10.43077975,1199.9,1199.6,2.5]
[1672620216940,0.62847975,1199.9,1199.6,6.8247903]
[1672620217146,0.626,1199.9,1199.6,9.85183313]
[1672620217464,0.626,1200.0,1199.7,0.23]
[1672620217674,0.626,1200.0,1199.7,3.23]
[1672620217916,0.626,1200.0,1199.8,2.75238382]
[1672620219565,0.626,1200.0,1199.9,1.08338382]
[1672620220774,0.06447975,1200.1,1199.9,6.39638382]
[1672620220998,10.44167975,1200.4,1200.0,2.73]
[1672620221186,14.52854089,1200.4,1200.0,2.98238382]
[1672620221364,0.6258,1200.3,1200.1,0.25238382]
[1672620223573,0.6258,1200.3,1200.0,2.73]
[1672620224435,0.6258,1200.3,1200.0,2.98238382]
[1672620224678,4.14886114,1200.2,1199.9,12.84615215]
[1672620224892,8.74386114,1200.2,1199.9,12.00151552]
[1672620225206,8.74634089,1200.2,1199.9,12.25389934]
[1672620226046,6.24634089,1200.2,1199.9,12.25389934]
[1672620226240,6.24634089,1200.2,1199.9,14.71954927]
[1672620227624,6.24634089,1200.2,1200.0,9.42212909]
[1672620227793,6.24634089,1200.2,1200.0,9.51753529]
[1672620228005,6.24634089,1200.2,1200.1,9.42212909]
[1672620228217,6.24634089,1200.2,1200.1,9.51753529]
[1672620229244,7.18975498,1200.2,1200.1,9.51753529]
[1672620231724,7.18975498,1200.2,1200.1,9.5152809]
[1672620232040,9.28475498,1200.2,1200.1,9.5152809]
[1672620243166,7.18975498,1200.2,1200.1,9.5152809]
[1672620244583,5.09475498,1200.2,1200.1,9.5152809]
[1672620244825,10.09475498,1200.2,1200.1,9.5152809]
[1672620247279,10.09475498,1200.2,1200.1,0.0954062]
[1672620247470,10.09475498,1200.2,1200.0,7.08024705]
[1672620247683,4.15134089,1200.2,1200.1,1.98484085]
[1672620247910,4.14886114,1200.2,1200.1,1.98484085]
[1672620248078,4.14886114,1200.2,1200.0,2.5]
[1672620248079,4.14886114,1200.2,1200.0,2.5954062]
[1672620248291,4.14886114,1200.2,1200.0,2.5]
[1672620248501,4.14886114,1200.2,1200.0,2.75238382]
[1672620249501,4.14886114,1200.2,1200.0,0.25238382]
[1672620249828,5.0,1200.1,1200.0,0.25238382]
[1672620249970,5.00247975,1200.1,1200.0,0.25238382]
[1672620254177,0.00247975,1200.1,1200.0,0.25238382]
[1672620254387,4.14886114,1200.2,1200.0,0.25238382]
[1672620255244,5.0,1200.1,1200.0,0.25238382]
[1672620255454,5.00247975,1200.1,1200.0,0.25238382]
[1672620260782,5.00247975,1200.1,1200.0,3.58338382]
[1672620260937,5.00247975,1200.1,1200.0,5.05149761]
[1672620261303,5.00247975,1200.1,1200.0,5.14690381]
[1672620261997,5.00247975,1200.1,1200.0,2.64690381]
[1672620262204,5.00247975,1200.1,1200.0,2.55149761]
[1672620265501,5.00247975,1200.1,1200.0,5.05149761]
[1672620265823,5.00247975,1200.1,1200.0,5.14690381]
[1672620268814,5.00247975,1200.1,1200.0,2.64690381]
[1672620269047,5.00247975,1200.1,1200.0,2.55149761]
[1672620269232,5.00247975,1200.1,1200.0,5.04890495]
[1672620269606,5.00247975,1200.1,1200.0,5.14431115]
[1672620269808,5.00247975,1200.1,1200.0,2.64431115]
[1672620270131,5.00247975,1200.1,1200.0,0.24979116]
[1672620270946,5.00247975,1200.1,1199.9,9.00275406]
[1672620277928,0.00247975,1200.1,1200.0,2.5]
[1672620278096,4.92727975,1200.3,1200.0,2.5]